Cogmind - Beta 12 @@@ ROGUE MODE // 2023.04.19 @ 19:29:39 Player: Mr Goldstein Result: Self-destructed Performance ------------- Evolutions (2) 1000 Regions Visited (4) 800 Robots Destroyed (0) 0 Value Destroyed (0) 0 Prototype IDs (1) 20 Alien Tech Used (0) 0 Bonus (470) 470 TOTAL SCORE: 2290 Bonus ------- Pacifist 470 Cogmind --------- Core Integrity 14/550 Matter 172/300 Energy 100/100 System Corruption 0% Temperature Cool (2) Movement Flying (35) Location -8/Storage Parts ------- > --- POWER (1) -------- (None) > --- PROPULSION (5) --- Cesium-ion Thruster > --- UTILITY (3) ------ (None) > --- WEAPON (2) ------- (None) > --- INVENTORY (5) ---- Micro Nuclear Core F-cell Engine Peak State ------------ > --- POWER ------------ F-cell Engine > --- PROPULSION ------- (None) > --- UTILITY ---------- (None) > --- WEAPON ----------- (None) > --- INVENTORY -------- Micro Nuclear Core Cesium-ion Thruster [Rating: 6] Favorites ----------- Power F-cell Engine Engine F-cell Engine Propulsion Cesium-ion Thruster Flight Unit Cesium-ion Thruster Utility None Weapon Mining Claw Slashing Weapon Mining Claw Build | -11 -10 -9 -8 -8 ------- Run | Jun Mat Mat Mat Sto Slots Evolved 4 | . . 2 2 . Power . | . . . . . Propulsion 3 | . . 2 1 . Utility 1 | . . . 1 . Weapon . | . . . . . Parts Attached 3 | . . 1 . 2 Power 1 | . . . . 1 Engine 1 | . . . . 1 Core . | . . . . . Reactor . | . . . . . Propulsion 1 | . . . . 1 Treads . | . . . . . Leg . | . . . . . Wheel . | . . . . . Hover . | . . . . . Flight 1 | . . . . 1 Utility . | . . . . . Device . | . . . . . Storage . | . . . . . Processor . | . . . . . Hackware . | . . . . . Protection . | . . . . . Artifact . | . . . . . Weapon 1 | . . 1 . . Energy Gun . | . . . . . Energy Cannon . | . . . . . Ballistic Gun . | . . . . . Ballistic Cannon . | . . . . . Launcher . | . . . . . Special Weapon . | . . . . . Impact Weapon . | . . . . . Slashing Weapon 1 | . . 1 . . Piercing Weapon . | . . . . . Special Melee Weapon . | . . . . . Unidentified Prototypes 1 | . . . . 1 Parts Lost 1 | . . . . 1 Power . | . . . . . Propulsion . | . . . . . Utility . | . . . . . Weapon 1 | . . . . 1 Highest Loss Streak 1 | . . . . 1 To Critical Strikes . | . . . . . Average Slot Usage (%) 3 | . . 5 9 2 Slashing Weapon 3 | . . 5 9 1 Naked Turns 158 | . 29 23 . 106 Heaviest Build 2 | . . 2 2 2 Greatest Support 5 | 3 3 3 3 5 Greatest Overweight (x) . | . . . . . Average Overweight (x) . | . . . . . Largest Inventory Capacity 5 | 5 5 5 5 5 Average Capacity 5 | 5 5 5 5 5 Most Carried 3 | . . . 1 3 Average Carried 1 | . . . . 1 Final Capacity 5 | 5 5 5 5 5 Final Carried 2 | . . . 1 2 Class Distribution -------------------- 100% | Mutant Dominant Class ---------------- Mutant | -10/Materials Mutant | -9/Materials Mutant | -8/Materials Mutant | -8/Storage Resources | -11 -10 -9 -8 -8 ----------- Run | Jun Mat Mat Mat Sto Matter Collected 65 | 65 . . . . Remotely . | . . . . . Salvage Created . | . . . . . Parts . | . . . . . Haulers Intercepted . | . . . . . Recyclers Shooed . | . . . . . Parts Field Recycled . | . . . . . Retrieved Matter . | . . . . . Parts Self-Destructed . | . . . . . Prevented . | . . . . . Kills | -11 -10 -9 -8 -8 ------- Run | Jun Mat Mat Mat Sto Combat Hostiles Destroyed . | . . . . . Classes Destroyed . | . . . . . Best Kill Streak . | . . . . . Combat Bots Only . | . . . . . Max Kills in Single Turn . | . . . . . Gunslinging . | . . . . . Exploded . | . . . . . Melee . | . . . . . Uniques/NPCs Destroyed . | . . . . . Combat | -11 -10 -9 -8 -8 -------- Run | Jun Mat Mat Mat Sto Damage Taken 706 | . 88 53 115 450 Core 662 | . 88 38 101 435 Absorbed by Shields . | . . . . . Core Remaining (%) 84 | 100 64 90 . . Volleys Fired . | . . . . . Largest . | . . . . . Hottest . | . . . . . Shots Fired . | . . . . . Gun . | . . . . . Cannon . | . . . . . Launcher . | . . . . . Special . | . . . . . Kinetic . | . . . . . Thermal . | . . . . . Explosive . | . . . . . Electromagnetic . | . . . . . Robot Hit Streak . | . . . . . Robot Miss Streak . | . . . . . Penetration Max . | . . . . . Secondary Targets . | . . . . . Shots Hit Robots . | . . . . . Core Hits 1 | . . . . 1 Critical Kills . | . . . . . Critical Parts Destroyed . | . . . . . Critical Strikes . | . . . . . Melee Attacks 1 | . . 1 . . Impact . | . . . . . Slashing 1 | . . 1 . . Piercing . | . . . . . Sneak Attacks . | . . . . . Combat Hostiles . | . . . . . Follow-up Attacks . | . . . . . Damage Inflicted 26 | . . . . 26 Guns . | . . . . . Cannons . | . . . . . Explosions . | . . . . . Melee . | . . . . . Ramming 26 | . . . . 26 Kinetic . | . . . . . Thermal . | . . . . . Explosive . | . . . . . Electromagnetic . | . . . . . Impact . | . . . . . Slashing . | . . . . . Piercing . | . . . . . Highest Corruption 1 | . . 1 . . Average Corruption 1 | . . 1 . . Corruption Purged . | . . . . . Corruption Blocked . | . . . . . Overload Shots . | . . . . . Overflow Damage . | . . . . . Projectiles . | . . . . . Explosions . | . . . . . Melee . | . . . . . Knockbacks . | . . . . . Impact . | . . . . . Kinetic . | . . . . . Secondary . | . . . . . Self-Inflicted Damage 11 | . . . . 11 Shots . | . . . . . Rammed 9 | . . 1 . 8 Targets Rammed 9 | . . 1 . 8 Kicked . | . . . . . Crushed . | . . . . . Highest Temperature . | . . . . . Average Temperature . | . . . . . Received Heat Transfer 285 | . 48 21 36 180 Siege Activations . | . . . . . Robots Corrupted . | . . . . . Combat Hostiles . | . . . . . Parts Fried . | . . . . . Impact Corruptions . | . . . . . Robots Melted . | . . . . . Combat Hostiles . | . . . . . Parts Melted . | . . . . . Heat Transferred . | . . . . . Parts Sabotaged . | . . . . . Parts Stolen . | . . . . . Parts Stripped . | . . . . . Power Chain Reactions . | . . . . . Missiles Intercepted . | . . . . . Alert | -11 -10 -9 -8 -8 ------- Run | Jun Mat Mat Mat Sto Peak Influence 264 | . . 31 43 264 Initial 17 | . . . 13 17 Average 62 | . . 5 33 107 Maximum Alert Level 1 | . . . . 1 Low Security (%) 92 | 100 100 100 100 85 Level 1 7 | . . . . 14 Level 2 . | . . . . . Level 3 . | . . . . . Level 4 . | . . . . . Level 5 . | . . . . . High Security . | . . . . . Max Security . | . . . . . Squads Dispatched 2 | . . 1 . 1 Investigation . | . . . . . Extermination . | . . . . . Reinforcement 2 | . . 1 . 1 Assault . | . . . . . Garrison . | . . . . . Intercept . | . . . . . Searches Triggered . | . . . . . Construction Impeded . | . . . . . Haulers Reinforced . | . . . . . Active Scanning Responses . | . . . . . Cargo Convoy Interrupts . | . . . . . Stealth | -11 -10 -9 -8 -8 --------- Run | Jun Mat Mat Mat Sto Distress Signals 1 | . . 1 . . Communications Jammed . | . . . . . Distress Signals . | . . . . . Times Spotted 28 | . 4 4 2 18 Peak Tracking Total 10 | . 4 4 2 10 Tactical Retreats 3 | . . . . 3 Traps | -11 -10 -9 -8 -8 ------- Run | Jun Mat Mat Mat Sto Traps Triggered 1 | . . 1 . . Indirectly . | . . . . . Trap Hack Attempts . | . . . . . Triggered . | . . . . . Disarmed . | . . . . . Reprogrammed . | . . . . . Reused . | . . . . . Traps Extracted . | . . . . . Installed . | . . . . . Triggered . | . . . . . Machines | -11 -10 -9 -8 -8 ---------- Run | Jun Mat Mat Mat Sto Machines Disabled . | . . . . . Max in Single Turn . | . . . . . Machines Repaired . | . . . . . Machines Sabotaged . | . . . . . Overloaded Fab Kills . | . . . . . Hacking | -11 -10 -9 -8 -8 --------- Run | Jun Mat Mat Mat Sto Machines Accessed 3 | . . 1 . 2 Terminals 3 | . . 1 . 2 Fabricators . | . . . . . Repair Stations . | . . . . . Recycling Units . | . . . . . Scanalyzers . | . . . . . Garrison Access . | . . . . . Total Hacks 3 | . . 1 . 2 Successful 3 | . . 1 . 2 Failed . | . . . . . Catastrophic . | . . . . . Database Lockouts . | . . . . . Manual 1 | . . 1 . . Terminals 3 | . . 1 . 2 Fabricators . | . . . . . Repair Stations . | . . . . . Recycling Units . | . . . . . Scanalyzers . | . . . . . Garrison Access . | . . . . . Terminal Hacks 3 | . . 1 . 2 Open Door 2 | . . . . 2 Zone Layout 1 | . . 1 . . Fabricator Hacks . | . . . . . Repair Station Hacks . | . . . . . Recycling Unit Hacks . | . . . . . Scanalyzer . | . . . . . Garrison Access Hacks . | . . . . . Unauthorized Hacks . | . . . . . Terminals . | . . . . . Fabricators . | . . . . . Repair Stations . | . . . . . Recycling Units . | . . . . . Scanalyzers . | . . . . . Garrison Access . | . . . . . Data Cores Recovered . | . . . . . Used . | . . . . . Hacking Detections 3 | . . 1 . 2 Full Trace Events . | . . . . . Feedback Events . | . . . . . Feedback Blocked . | . . . . . Robot Schematics Acquired . | . . . . . Robots Built . | . . . . . Authchips . | . . . . . Time . | . . . . . Total Robot Build Rating . | . . . . . Part Schematics Acquired . | . . . . . Parts Built . | . . . . . Authchips . | . . . . . Time . | . . . . . Total Part Build Rating . | . . . . . Parts Repaired . | . . . . . Time . | . . . . . Parts Recycled . | . . . . . Recycled Matter . | . . . . . Retrieved Matter . | . . . . . Retrieved Components . | . . . . . Parts Scanalyzed . | . . . . . Part Schematics Acquired . | . . . . . Parts Damaged . | . . . . . Bothacking | -11 -10 -9 -8 -8 ------------ Run | Jun Mat Mat Mat Sto Used RIF Installer . | . . . . . Robots Hacked . | . . . . . Non-combat . | . . . . . Combat . | . . . . . Robot Hacks Applied . | . . . . . Relay Couplers Released . | . . . . . Fabnet Peak Effective % . | . . . . . Robots Rewired . | . . . . . Allies Hacked . | . . . . . Hacks Repelled . | . . . . . Allies | -11 -10 -9 -8 -8 -------- Run | Jun Mat Mat Mat Sto Total Allies . | . . . . . Largest Group . | . . . . . Highest-Rated Group . | . . . . . Highest-Rated Ally . | . . . . . Total Orders . | . . . . . Ally Attacks . | . . . . . Total Damage . | . . . . . Kills . | . . . . . Allies Corrupted . | . . . . . Allies Melted . | . . . . . Intel | -11 -10 -9 -8 -8 ------- Run | Jun Mat Mat Mat Sto Robot Analysis Total . | . . . . . Derelict Logs Recovered . | . . . . . Drone Launches . | . . . . . Drone Recoveries . | . . . . . Exploration | -11 -10 -9 -8 -8 ------------- Run | Jun Mat Mat Mat Sto Turns Passed 268 | 9 29 56 32 142 Spaces Moved 509 | 19 57 101 62 270 Core 475 | 19 57 101 62 236 Treads . | . . . . . Legs . | . . . . . Wheels . | . . . . . Hover . | . . . . . Flight 34 | . . . . 34 Fastest Speed 35 | 50 50 50 50 35 Average Speed 48 | 50 50 50 50 48 Slowest Speed 50 | 50 50 50 50 50 Overloaded Moves . | . . . . . Propulsion Burnouts . | . . . . . Robots Hopped 1 | . . . . 1 Cave-ins Triggered . | . . . . . Exploration Rate (%) 19 | 3 13 15 11 54 Regions Visited 4 Branch Regions 1 Pre-discovered Areas . | . . . . . Known Exits Taken . | . . . . . Unknown Exits Taken 4 | 1 1 1 1 . Scrap Searched . | . . . . . Spaces Dug 1 | . . 1 . . Terrain Destroyed 1 | . . 1 . . Melee 1 | . . 1 . . Projectile . | . . . . . AOE . | . . . . . Terrain Rammed . | . . . . . Walls Destroyed . | . . . . . Machines Disabled . | . . . . . Actions | -11 -10 -9 -8 -8 --------- Run | Jun Mat Mat Mat Sto Total 520 | 18 56 103 62 281 Wait . | . . . . . Move 503 | 18 56 100 61 268 Hop 1 | . . . . 1 Pick Up 2 | . . . 1 1 Fast Attach 2 | . . 1 . 1 Attach 1 | . . . . 1 Detach 1 | . . . . 1 Swap . | . . . . . Drop . | . . . . . Fire . | . . . . . Melee 1 | . . 1 . . Ram 9 | . . 1 . 8 Kick . | . . . . . Crush . | . . . . . Escape Stasis . | . . . . . Rewire . | . . . . . Trap . | . . . . . Miscellaneous . | . . . . . Route ------- -11/Junkyard -10/Materials -9/Materials -8/Materials -8/Storage History --------- Turn | Location | Event 3 | -11/Junkyard | Discovered new exit (range 15) 10 | -11/Junkyard | Entered Materials 33 | -10/Materials | Discovered new exit (range 12) 39 | -10/Materials | Entered another Materials area 39 | -9/Materials | Evolved 2 slots: Propulsion x2 92 | -9/Materials | Discovered new exit (range 8) 95 | -9/Materials | Entered another Materials area 95 | -8/Materials | Evolved 2 slots: Propulsion x1, Utility x1 120 | -8/Materials | Discovered new exit (range 15) 127 | -8/Materials | Entered Storage 170 | -8/Storage | Core integrity fell below 50% 223 | -8/Storage | Core integrity fell below 20% 269 | -8/Storage | Self-destructed Last Messages --------------- 00160_ Acquired Cesium-ion Thruster. 00167_ Slammed into G-47 Trooper. 00185_ Y-45 Defender destroyed. 00205_ Slammed into R-06 Scavenger. 00216_ Slammed into G-47 Trooper. 00216_ O-16 Technician: "IFF HANDSHAKE FAILED. SECURING TERMINAL." 00217_ Slammed into G-47 Trooper. 00220_ K-01 Serf collects debris. 00227_ ALERT: Hostiles spotted, dispatching reinforcements to Terminal S002. 00231_ Penetrated by Slug. 00249_ Connecting with Door Terminal... 00249_ Current location identified: Storage >>Open(Door) Sealed Heavy Doors opened. 00253_ Connecting with Door Terminal... >>Open(Door) Sealed Heavy Doors opened. 00255_ Acquired Prototype Engine. 00255_ Identified F-cell Engine. 00268_ K-01 Serf collects debris. Map ----- +----------------------------------------------------+ | ?????# #???????????# #?????????????? | | ?????# #???????????# #?????????????? | | ???### #???????????# #?????????????? | | ???# #####???????# ############### | | ???# ????????/ | | ???# #####???????# ######## | | ???## ##???????????# "" #??????# | | ????# #????????????# T" #??????# | | ????# #????????????# "" #??????# | | ????# #????????????# #?????## | | ????# #????????????# #?????# | | ????# #####????????# #?????# | | ????# +????????# """ #?????# | | ????# #????????# """ +?????### | | #####+## #????????# """ #???????? | | # + +????????# ? #???????? | | # # ##????????# ? #???????? | | # # #?????????# ? +???????? | | # # #?????????# #?###????????? | | # # ######+#### r#????????????? | | # # !#????????????? | | # + #????????????? | | # # !/ +????????????? | | # ## !/ #????????????? | | # ## // k #????????????? | | # ## @ #????????????? | | # ## #????????????? | | # ## !! #????????????? | | ######### ! #????????????? | | ????????# ??????????? | | ????????# ??????????? | | ????????##+###+######### ??????????? | | ???????????????????????????????????? | | ???????????????????????????????????? | | ???????????????????????????????????? | | ???????????????????????????????????? | | ???????????????????????????????????? | | ???????????????????????????????????? | | ???????????????????????????????????? | | ???????????????????????????????????? | | ???????????????????????????????????? | | ???????????????????????????????????? | | ?????????????????????#########?????? | | ?????????????????????? ??????? | | ??????????#######????? ??????? | | ??????????# #?????? ???????? | | ??????????# #?????? ???????? | | ??????????# T#??????? ????????? | | ??????????## ##??????? ????????? | | ??????######+############+########## | +----------------------------------------------------+ Best States ------------- Heat Dissipation 31 Energy Generation 5 Energy Capacity 100 Matter Stores 192 Matter Capacity 300 Sight Range 16 Terrain Scan Density 10 Evasion (%) 63 Item Schematics ----------------- None Robot Schematics ------------------ None Fabricated ------------ Nothing Alien Tech Used ----------------- None Achievements -------------- None Challenges ------------ None Game ------ Seed ChargeFrostSword Manual? 0 Play Time 00:05:14 Cumulative 129.0 hours Start 2023.04.19 @ 19:26:02 End 2023.04.19 @ 19:29:39 Sessions 1 Manual Loads 0 Difficulty Rogue Special Mode None Game No. 374 Rogue 374 Adventurer 0 Explorer 0 Win Type - Total 4 Types 4/0/0/0/0/0/0/0/0 Lore% 60 Gallery% 64 Achievement% 54 Wizard Run 0 Options --------- ASCII 0 Keyboard 0 Movement Numpad Keybinds 0 Fullscreen 1 Font 12/Smallcaps Map View 83x54 Tactical HUD 1 Map Filters NONE Filters NONE Steam 1 RUN: 6af990d7-0e80-4c20-b6f9-a85513e483a0